fUSD/lending_fUSD_20250526
["ID","MTS","AMOUNT","RATE_DAILY","PERIOD"]
[362406292,1748254249868,-420.0,0.00023283,2]
[362406293,1748254249877,-420.0,0.00023283,2]
[362406294,1748254249887,-420.0,0.00023283,2]
[362406295,1748254249897,-420.0,0.00023283,2]
[362406296,1748254249906,-420.0,0.00023283,2]
[362406297,1748254249915,-420.0,0.00023283,2]
[362406298,1748254249925,-420.0,0.00023283,2]
[362406299,1748254249934,-121605.74,0.00023285,2]
[362406300,1748254249944,-1000.0,0.00023347,2]
[362406301,1748254249955,-5715.26879605,0.00023417,2]
[362406302,1748254249966,-537.75580279,0.00023419,2]
[362406303,1748254249976,-363.32,0.00023614,2]
[362406304,1748254249985,-732.25,0.00023836,2]
[362406305,1748254249994,-251.43277903,0.00023916,2]
[362406306,1748254250003,-1000.0,0.00024134,2]
[362406307,1748254250011,-299.22795996,0.00024397,2]
[362406308,1748254250019,-420.0,0.00024397,2]
[362406309,1748254250027,-421.4470056,0.00024397,2]
[362406310,1748254250035,-466.61953675,0.00024397,2]
[362406311,1748254250044,-420.0,0.00024397,2]
[362406312,1748254250052,-420.0,0.00024397,2]
[362406313,1748254250062,-420.0,0.00024397,2]
[362406314,1748254250070,-420.0,0.00024397,2]
[362406315,1748254250078,-420.0,0.00024397,2]
[362406316,1748254250087,-294.07912722,0.00024397,2]
[362406317,1748254250095,-420.0,0.00024397,2]
[362406318,1748254250104,-420.0,0.00024397,2]
[362406319,1748254250112,-420.0,0.00024397,2]
[362406320,1748254250120,-420.0,0.00024397,2]
[362406321,1748254250129,-1328.0,0.00024398,2]
[362406322,1748254250138,-809.366,0.00024398,2]
[362406323,1748254250146,-1000.0,0.00024658,2]
[362406324,1748254250155,-420.0,0.00024799,2]
[362406325,1748254250163,-263.92,0.00024799,2]
[362406326,1748254250174,-420.0,0.00024799,2]
[362406327,1748254250187,-474.49,0.00024799,2]
[362406328,1748254250197,-420.0,0.00024799,2]
[362406329,1748254250209,-148774.282426,0.000248,2]
[362406330,1748254250219,-168.31,0.00024884,2]
[362406331,1748254250231,-500.0,0.00025,2]
[362406332,1748254250241,-464.33507353,0.00025,30]
[362406333,1748254250253,-4000.0,0.00025349,2]
[362406334,1748254250263,-1000.0,0.00025361,2]
[362406335,1748254250274,-363.32,0.00025878,2]
[362406336,1748254250282,-313.965939,0.00025969,6]
[362406337,1748254250290,-9918.28549507,0.00026094,2]
[362406338,1748254250298,-420.0,0.00026104,2]
[362406339,1748254250306,-420.0,0.00026104,2]
[362406340,1748254250315,-420.0,0.00026104,2]
[362406341,1748254250324,-420.0,0.00026104,2]
[362406342,1748254250334,-420.0,0.00026104,2]
[362406343,1748254250345,-420.0,0.00026104,2]
[362406344,1748254250356,-420.0,0.00026104,2]
[362406345,1748254250367,-420.0,0.00026104,2]
[362406346,1748254250378,-261.4,0.00026104,2]
[362406347,1748254250389,-420.0,0.00026104,2]
[362406348,1748254250399,-171.2,0.00026104,2]
[362406349,1748254250408,-420.0,0.00026104,2]
[362406350,1748254250419,-167.2,0.00026104,2]
[362406351,1748254250427,-369.23,0.00026104,2]
[362406352,1748254250435,-238.88751001,0.00026104,2]
[362406353,1748254250444,-184.09168786,0.00026104,2]
[362406354,1748254250452,-420.0,0.00026104,2]
[362406355,1748254250462,-211.51,0.00026104,2]
[362406356,1748254250470,-177.81,0.00026104,2]
[362406357,1748254250478,-311.9,0.00026104,2]
[362406358,1748254250487,-420.0,0.00026104,2]
[362406359,1748254250496,-197.73,0.00026104,2]
[362406360,1748254250505,-420.0,0.00026104,2]
[362406361,1748254250514,-420.0,0.00026104,2]
[362406362,1748254250523,-420.0,0.00026104,2]
[362406363,1748254250532,-420.0,0.00026104,2]
[362406364,1748254250541,-420.0,0.00026104,2]
[362406365,1748254250551,-420.0,0.00026104,2]
[362406366,1748254250560,-420.0,0.00026104,2]
[362406367,1748254250569,-420.0,0.00026104,2]
[362406368,1748254250578,-420.0,0.00026104,2]
[362406369,1748254250587,-245.11,0.00026104,2]
[362406370,1748254250597,-420.0,0.00026104,2]
[362406371,1748254250606,-420.0,0.00026104,2]
[362406372,1748254250614,-420.0,0.00026104,2]
[362406373,1748254250623,-420.0,0.00026104,2]
[362406374,1748254250632,-342.19,0.00026104,2]
[362406375,1748254250642,-420.0,0.00026104,2]
[362406376,1748254250651,-420.0,0.00026104,2]
[362406377,1748254250660,-203.05,0.00026104,2]
[362406378,1748254250669,-420.0,0.00026104,2]
[362406379,1748254250678,-420.0,0.00026104,2]
[362406380,1748254250687,-235.93,0.00026104,2]
[362406381,1748254250696,-420.0,0.00026104,2]
[362406382,1748254250704,-525.2,0.00026104,2]
[362406383,1748254250713,-192.8,0.00026104,2]
[362406384,1748254250720,-420.0,0.00026104,2]
[362406385,1748254250729,-420.0,0.00026104,2]
[362406386,1748254250736,-420.0,0.00026104,2]
[362406387,1748254250744,-420.0,0.00026104,2]
[362406388,1748254250752,-420.0,0.00026104,2]
[362406389,1748254250759,-420.0,0.00026104,2]
[362406390,1748254250766,-489.29,0.00026104,2]
[362406391,1748254250775,-420.0,0.00026104,2]
[362406392,1748254250785,-420.0,0.00026104,2]
[362406393,1748254250794,-252.41,0.00026104,2]
[362406394,1748254250803,-420.0,0.00026104,2]
[362406395,1748254250813,-420.0,0.00026104,2]
[362406396,1748254250822,-420.0,0.00026104,2]
[362406397,1748254250832,-420.0,0.00026104,2]
[362406398,1748254250842,-150.0,0.00026297,2]
[362406399,1748254250851,-211.184703,0.00026297,2]
[362406400,1748254250861,-150.0,0.00026297,2]
[362406401,1748254250871,-4061.40336909,0.00026297,2]
[362406402,1748254250880,-1362.01,0.00026331,2]
[362406403,1748254250890,-167.18,0.00026676,2]
[362406404,1748254250899,-185.91,0.000268,31]
[362406405,1748254250910,-9918.28549507,0.00026928,2]
[362406406,1748254250919,-3646.96387585,0.00026938,2]
[362406407,1748254251048,-420.0,0.00019998,2]
[362406408,1748254251058,-42.19115313,0.00026938,2]
[362406409,1748254251146,-249.37890306,0.00026938,2]
[362406410,1748254251163,-249.83,0.00026104,2]
[362406411,1748254251172,-1776.73486401,0.00026938,2]
[362406412,1748254251182,-537.75580279,0.00026941,2]
[362406413,1748254251192,-550.0,0.00027,2]
[362406414,1748254251202,-1088.0,0.00027,120]
[362406415,1748254251211,-480.3573532,0.00027358,2]
[362406416,1748254251290,-420.0,0.00019997,2]
[362406417,1748254251300,-9437.92814187,0.00027358,2]
[362406418,1748254251309,-420.0,0.00027368,2]
[362406419,1748254251319,-420.0,0.00027368,2]
[362406420,1748254251328,-262.07185813,0.00027368,2]
[362406421,1748254251345,-157.92814187,0.00027368,2]
[362406422,1748254251354,-273.35,0.00027368,2]
[362406423,1748254251364,-551.35,0.00027368,2]
[362406424,1748254251376,-453.04,0.00027368,2]
[362406425,1748254251387,-445.54,0.00027368,2]
[362406426,1748254251396,-209.47,0.00027368,2]
[362406427,1748254251406,-420.0,0.00027368,2]
[362406428,1748254251419,-397.75,0.00027368,2]
[362406429,1748254251431,-373.28,0.00027368,2]
[362406430,1748254251440,-247.45,0.00027368,2]
[362406431,1748254251449,-359.75,0.00027368,2]
[362406432,1748254251459,-420.0,0.00027368,2]
[362406433,1748254251469,-420.0,0.00027368,2]
[362406434,1748254251479,-233.97,0.00027368,2]
[362406435,1748254251488,-420.0,0.00027368,2]
[362406436,1748254251500,-420.0,0.00027368,2]
[362406437,1748254251510,-272.11,0.00027368,2]
[362406438,1748254251520,-420.0,0.00027368,2]
[362406439,1748254251530,-420.0,0.00027368,2]
[362406440,1748254251540,-500.0,0.00027368,2]
[362406441,1748254251551,-420.0,0.00027368,2]
[362406442,1748254251561,-269.05,0.00027368,2]
[362406443,1748254251573,-188.99,0.00027368,2]
[362406444,1748254251583,-464.65,0.00027368,2]
[362406445,1748254251594,-319.22,0.00027368,2]
[362406446,1748254251604,-420.0,0.00027368,2]
[362406447,1748254251614,-420.0,0.00027368,2]
[362406448,1748254251625,-420.0,0.00027368,2]
[362406449,1748254251635,-420.0,0.00027368,2]
[362406450,1748254251645,-422.34,0.00027368,2]
[362406451,1748254251656,-420.0,0.00027368,2]
[362406452,1748254251666,-490.23,0.00027368,2]
[362406453,1748254251677,-227.85,0.00027368,2]
[362406454,1748254251688,-420.0,0.00027368,2]
[362406455,1748254251700,-315.69659559,0.00027368,2]
[362406456,1748254251710,-553.64,0.00027368,2]
[362406457,1748254251897,-420.0,0.00027368,2]
[362406458,1748254251908,-489.84798498,0.00027368,2]
[362406459,1748254251918,-420.0,0.00027368,2]
[362406460,1748254251928,-536.56,0.00027368,2]
[362406461,1748254251938,-420.0,0.00027368,2]
[362406462,1748254251948,-239.29,0.00027368,2]
[362406463,1748254251960,-420.0,0.00027368,2]
[362406464,1748254251970,-420.0,0.00027368,2]
[362406465,1748254251982,-420.0,0.00027368,2]
[362406466,1748254251992,-499.7,0.00027368,2]
[362406467,1748254252002,-304.08213614,0.00027368,2]
[362406468,1748254252012,-500.0,0.00027368,2]
[362406469,1748254252022,-420.0,0.00027368,2]
[362406470,1748254252031,-279.46297654,0.00027368,2]
[362406471,1748254252041,-420.0,0.00027368,2]
[362406472,1748254252051,-282.44,0.00027368,2]
[362406473,1748254252061,-420.0,0.00027368,2]
[362406474,1748254252071,-420.0,0.00027368,2]
[362406475,1748254252081,-550.27099793,0.00027368,2]
[362406476,1748254252090,-420.0,0.00027368,2]
[362406477,1748254252100,-420.0,0.00027368,2]
[362406478,1748254252110,-358.29660855,0.00027368,2]
[362406479,1748254252120,-420.0,0.00027368,2]
[362406480,1748254252130,-420.0,0.00027368,2]
[362406481,1748254252139,-536.51396543,0.00027368,2]
[362406482,1748254252149,-244.09,0.00027368,2]
[362406483,1748254252158,-523.04,0.00027368,2]
[362406484,1748254252168,-225.7,0.00027368,2]
[362406485,1748254252178,-420.0,0.00027368,2]
[362406486,1748254252188,-420.0,0.00027368,2]
[362406487,1748254252198,-366.8,0.00027368,2]
[362406488,1748254252210,-420.0,0.00027368,2]
[362406489,1748254252220,-208.22,0.00027368,2]
[362406490,1748254252231,-500.0,0.00027368,2]
[362406491,1748254252242,-171.03,0.00027368,2]
[362406492,1748254252252,-352.53,0.00027368,2]
[362406493,1748254252262,-420.0,0.00027368,2]
[362406494,1748254252273,-223.32,0.00027368,2]
[362406495,1748254252283,-420.0,0.00027368,2]
[362406496,1748254252294,-420.0,0.00027368,2]
[362406497,1748254252304,-294.95,0.00027368,2]
[362406498,1748254252315,-403.75,0.00027368,2]
[362406499,1748254252324,-157.16,0.00027368,2]
[362406500,1748254252334,-519.99843009,0.00027368,2]
[362406501,1748254252344,-420.0,0.00027368,2]
[362406502,1748254252354,-420.0,0.00027368,2]
[362406503,1748254252364,-328.52334726,0.00027368,2]
[362406504,1748254252374,-566.23161621,0.00027368,2]
[362406505,1748254252383,-420.0,0.00027368,2]
[362406506,1748254252394,-418.93794549,0.00027368,2]
[362406507,1748254252404,-1000.0,0.00027369,30]
[362406508,1748254252414,-1000.0,0.00027369,30]
[362406509,1748254252427,-420.0,0.00027397,2]
[362406510,1748254252436,-300.0,0.00027397,2]
[362406511,1748254252446,-700.0,0.00027397,2]
[362406512,1748254252456,-150.0,0.00027397,2]
[362406513,1748254252467,-1000.0,0.00027667,2]
[362406514,1748254252477,-578.43,0.000279,120]
[362406515,1748254252487,-900.0,0.00028,120]
[362406516,1748254252497,-150.0,0.00028118,2]
[362406517,1748254252508,-363.32,0.00028142,2]
[362406518,1748254252518,-299.99,0.00028203,12]
[362406519,1748254252528,-150.0,0.00028839,2]
[362406520,1748254252538,-600.0,0.00029,2]
[362406521,1748254252547,-154.0,0.00029,2]
[362406522,1748254252557,-154.0,0.00029,2]
[362406523,1748254252566,-461.94,0.00029049,2]
[362406524,1748254252576,-150.0,0.0002956,2]
[362406525,1748254252586,-1200.0,0.0003,120]
[362406526,1748254252595,-9918.28549507,0.0003007,2]
[362406527,1748254252605,-150.0,0.00030281,2]
[362406528,1748254252614,-363.32,0.00030406,2]
[362406529,1748254252624,-5715.26879605,0.0003046,2]
[362406530,1748254252635,-537.75580279,0.00030462,2]
[362406531,1748254252645,-617.93,0.000308,7]
[362406532,1748254252655,-650.0,0.00031,2]
[362406533,1748254252664,-150.0,0.00031002,2]
[362406534,1748254252675,-2112.0,0.00031243,2]
[362406535,1748254252686,-2112.0,0.00031565,2]
[362406536,1748254252696,-150.0,0.00031723,2]
[362406537,1748254252707,-2112.0,0.00031887,2]
[362406538,1748254252717,-1000.0,0.00032,120]
[362406539,1748254252727,-310.0,0.00032209,5]
[362406540,1748254252738,-2112.0,0.00032209,2]
[362406541,1748254252748,-682.47122857,0.00032209,2]
[362406542,1748254252758,-150.0,0.00032444,2]
[362406543,1748254252768,-2112.0,0.00032531,2]
[362406544,1748254252777,-363.32,0.0003267,2]
[362406545,1748254252787,-9918.28549507,0.00032843,2]
[362406546,1748254252797,-2112.0,0.00032853,2]
[362406547,1748254252807,-700.0,0.00033,2]
[362406548,1748254252816,-200.0,0.00033151,2]
[362406549,1748254252827,-167.18,0.00033165,2]
[362406550,1748254252837,-150.0,0.00033165,2]
[362406551,1748254252846,-2112.0,0.00033175,2]
[362406552,1748254252856,-659.76557478,0.00033784,7]
[362406553,1748254252866,-150.0,0.00033886,2]
[362406554,1748254252876,-195.315,0.00033977,37]
[362406555,1748254252885,-1581.206,0.00033977,37]
[362406556,1748254252895,-5715.26879605,0.00033982,2]
[362406557,1748254252906,-537.75580279,0.00033983,2]
[362406558,1748254252915,-1000.0,0.00034,120]
[362406559,1748254252925,-150.0,0.00034607,2]
[362406560,1748254252935,-363.32,0.00034934,2]
[362406561,1748254252944,-19836.5709901,0.0003499,2]
[362406562,1748254252954,-421.18694311,0.00034999,2]
[362406563,1748254252963,-420.0,0.00034999,2]
[362406564,1748254252974,-202.6,0.00034999,2]
[362406565,1748254252986,-420.0,0.00034999,2]
[362406566,1748254252996,-420.0,0.00034999,2]
[362406567,1748254253006,-420.0,0.00034999,2]
[362406568,1748254253016,-500.0,0.00035,2]
[362406569,1748254253027,-500.0,0.00035,2]
[362406570,1748254253036,-500.0,0.00035,2]
[362406571,1748254253045,-500.0,0.00035,2]
[362406572,1748254253055,-500.0,0.00035,2]
[362406573,1748254253064,-500.0,0.00035,2]
[362406574,1748254253074,-500.0,0.00035,2]
[362406575,1748254253083,-500.0,0.00035,2]
[362406576,1748254253092,-500.0,0.00035,2]
[362406577,1748254253102,-500.0,0.00035,2]
[362406578,1748254253111,-500.0,0.00035,2]
[362406579,1748254253121,-500.0,0.00035,2]
[362406580,1748254253130,-500.0,0.00035,2]
[362406581,1748254253139,-500.0,0.00035,2]
[362406582,1748254253149,-500.0,0.00035,2]
[362406583,1748254253158,-500.0,0.00035,2]
[362406584,1748254253168,-500.0,0.00035,2]
[362406585,1748254253177,-500.0,0.00035,2]
[362406586,1748254253187,-500.0,0.00035,2]
[362406587,1748254253196,-500.0,0.00035,2]
[362406588,1748254253206,-500.0,0.00035,2]
[362406589,1748254253216,-500.0,0.00035,2]
[362406590,1748254253226,-500.0,0.00035,2]
[362406591,1748254253236,-500.0,0.00035,2]
[362406592,1748254253245,-500.0,0.00035,2]
[362406593,1748254253255,-500.0,0.00035,2]
[362406594,1748254253265,-500.0,0.00035,2]
[362406595,1748254253275,-500.0,0.00035,2]
[362406596,1748254253285,-500.0,0.00035,2]
[362406597,1748254253295,-500.0,0.00035,2]
[362406598,1748254253305,-500.0,0.00035,2]
[362406599,1748254253315,-500.0,0.00035,2]
[362406600,1748254253325,-500.0,0.00035,2]
[362406601,1748254253334,-500.0,0.00035,2]
[362406602,1748254253344,-500.0,0.00035,2]
[362406603,1748254253354,-500.0,0.00035,2]
[362406604,1748254253364,-500.0,0.00035,2]
[362406605,1748254253373,-500.0,0.00035,2]
[362406606,1748254253383,-500.0,0.00035,2]
[362406607,1748254253392,-500.0,0.00035,2]
[362406608,1748254253402,-500.0,0.00035,2]
[362406609,1748254253411,-500.0,0.00035,2]
[362406610,1748254253424,-500.0,0.00035,2]
[362406611,1748254253433,-500.0,0.00035,2]
[362406612,1748254253443,-500.0,0.00035,2]
[362406613,1748254253452,-500.0,0.00035,2]
[362406614,1748254253462,-500.0,0.00035,2]
[362406615,1748254253472,-500.0,0.00035,2]
[362406616,1748254253482,-500.0,0.00035,2]
[362406617,1748254253491,-500.0,0.00035,2]
[362406618,1748254253503,-500.0,0.00035,2]
[362406619,1748254253513,-500.0,0.00035,2]
[362406620,1748254253523,-500.0,0.00035,2]
[362406621,1748254253532,-500.0,0.00035,2]
[362406622,1748254253542,-500.0,0.00035,2]
[362406623,1748254253552,-500.0,0.00035,2]
[362406624,1748254253562,-500.0,0.00035,2]
[362406625,1748254253571,-500.0,0.00035,2]
[362406626,1748254253581,-500.0,0.00035,2]
[362406627,1748254253590,-500.0,0.00035,2]
[362406628,1748254253601,-500.0,0.00035,2]
[362406629,1748254253610,-500.0,0.00035,2]
[362406630,1748254253620,-500.0,0.00035,2]
[362406631,1748254253629,-500.0,0.00035,2]
[362406632,1748254253639,-500.0,0.00035,2]
[362406633,1748254253648,-500.0,0.00035,2]
[362406634,1748254253659,-500.0,0.00035,2]
[362406635,1748254253668,-500.0,0.00035,2]
[362406636,1748254253678,-500.0,0.00035,2]
[362406637,1748254253687,-500.0,0.00035,2]
[362406638,1748254253697,-500.0,0.00035,2]
[362406639,1748254253707,-500.0,0.00035,2]
[362406640,1748254253717,-500.0,0.00035,2]
[362406641,1748254253727,-500.0,0.00035,2]
[362406642,1748254253737,-500.0,0.00035,2]
[362406643,1748254253747,-500.0,0.00035,2]
[362406644,1748254253756,-500.0,0.00035,2]
[362406645,1748254253766,-500.0,0.00035,2]
[362406646,1748254253776,-500.0,0.00035,2]
[362406647,1748254253785,-500.0,0.00035,2]
[362406648,1748254253795,-500.0,0.00035,2]
[362406649,1748254253805,-175.53,0.00035,14]
[362406650,1748254253815,-732.25,0.00035068,2]
[362406651,1748254253824,-150.0,0.00035328,2]
[362406652,1748254253834,-1000.0,0.00035337,2]
[362406653,1748254253843,-2000.0,0.000356,2]
[362406654,1748254253859,-9918.28549507,0.0003589,2]
[362406655,1748254253869,-20000.0,0.000359,120]
[362406656,1748254253880,-1000.0,0.00036,120]
[362406657,1748254253889,-150.0,0.00036049,2]
[362406658,1748254253899,-150.0,0.0003677,2]
[362406659,1748254253909,-4000.0,0.00036793,4]
[362406660,1748254253918,-9918.28549507,0.0003689,3]
[362406661,1748254253928,-20000.0,0.000369,120]
[362406662,1748254253937,-9918.28549507,0.00037187,3]
[362406663,1748254253946,-363.32,0.00037197,2]
[362406664,1748254253956,-150.0,0.00037491,2]
[362406665,1748254253965,-5715.26879605,0.00037503,2]
[362406666,1748254253977,-537.75580279,0.00037505,2]
[362406667,1748254253987,-9918.28549507,0.0003789,3]
[362406668,1748254253996,-420.0,0.00037899,2]
[362406669,1748254254006,-20000.0,0.000379,120]
[362406670,1748254254016,-1000.0,0.00038,120]
[362406671,1748254254025,-150.0,0.00038212,2]
[362406672,1748254254035,-200.36,0.00038356,4]
[362406673,1748254254044,-2000.0,0.000384,2]
[362406674,1748254254053,-1200.0,0.000384,2]
[362406675,1748254254062,-9918.28549507,0.00038608,3]
[362406676,1748254254072,-500.0,0.00038618,30]
[362406677,1748254254081,-500.0,0.00038618,30]
[362406678,1748254254092,-500.0,0.00038618,30]
[362406679,1748254254104,-500.0,0.00038618,30]
[362406680,1748254254114,-500.0,0.00038618,30]
[362406681,1748254254123,-500.0,0.00038618,30]
[362406682,1748254254135,-500.0,0.00038618,30]
[362406683,1748254254147,-500.0,0.00038618,30]
[362406684,1748254254158,-500.0,0.00038618,30]
[362406685,1748254254168,-500.0,0.00038618,30]
[362406686,1748254254178,-500.0,0.00038618,30]
[362406687,1748254254188,-500.0,0.00038618,30]
[362406688,1748254254197,-500.0,0.00038618,30]
[362406689,1748254254207,-500.0,0.00038618,30]
[362406690,1748254254216,-500.0,0.00038618,30]
[362406691,1748254254226,-500.0,0.00038618,30]
[362406692,1748254254275,-500.0,0.00038618,30]
[362406693,1748254254284,-500.0,0.00038618,30]
[362406694,1748254254293,-500.0,0.00038618,30]
[362406695,1748254254303,-500.0,0.00038618,30]
[362406696,1748254254312,-500.0,0.00038618,30]
[362406697,1748254254322,-500.0,0.00038618,30]
[362406698,1748254254331,-500.0,0.00038618,30]
[362406699,1748254254340,-500.0,0.00038618,30]
[362406700,1748254254349,-500.0,0.00038618,30]
[362406701,1748254254360,-500.0,0.00038618,30]
[362406702,1748254254369,-500.0,0.00038618,30]
[362406703,1748254254379,-500.0,0.00038618,30]
[362406704,1748254254388,-175.53,0.000387,14]
[362406705,1748254254399,-9918.28549507,0.0003889,3]
[362406706,1748254254411,-20000.0,0.000389,120]
[362406707,1748254254423,-150.0,0.00038933,2]
[362406708,1748254254432,-514.94,0.00039,14]
[362406709,1748254254441,-363.32,0.00039461,2]
[362406710,1748254254452,-167.18,0.00039654,2]
[362406711,1748254254463,-150.0,0.00039654,2]
[362406712,1748254254472,-736.4073584,0.0003988,2]
[362406713,1748254254482,-9918.28549507,0.0003989,3]
[362406714,1748254254491,-8000.42264165,0.000399,120]
[362406715,1748254254525,-345.52759011,0.000399,120]
[362406716,1748254254610,-420.0,0.00019997,2]
[362406717,1748254254620,-7691.88,0.000399,120]
[362406718,1748254254632,-3962.16976824,0.000399,120]
[362406719,1748254254642,-420.0,0.00039999,2]
[362406720,1748254254652,-420.0,0.00039999,2]
[362406721,1748254254661,-175.38867704,0.00039999,2]
[362406722,1748254254671,-503.53755472,0.0004,120]
[362406723,1748254254683,-2870.89998013,0.0004,120]
[362406724,1748254254692,-1000.0,0.0004,120]
[362406725,1748254254702,-5231.04837959,0.00040362,12]
[362406726,1748254254711,-150.0,0.00040375,2]
[362406727,1748254254720,-9918.28549507,0.00041015,3]
[362406728,1748254254730,-5715.26879605,0.00041025,15]
[362406729,1748254254740,-537.75580279,0.00041026,15]
[362406730,1748254254750,-1000.0,0.00041095,120]
[362406731,1748254254759,-2570.66,0.00041095,2]
[362406732,1748254254772,-2570.66,0.00041095,2]
[362406733,1748254254784,-150.0,0.00041096,2]
[362406734,1748254254793,-2000.0,0.000411,2]
[362406735,1748254254803,-695.57622151,0.00041123,120]
[362406736,1748254254812,-19836.5709901,0.0004119,3]
[362406737,1748254254822,-420.0,0.00041199,2]
[362406738,1748254254831,-361.92,0.00041199,2]
[362406739,1748254254841,-34552.44,0.000412,120]
[362406740,1748254254850,-29754.8564852,0.00041337,3]
[362406741,1748254254860,-9918.28549507,0.00041347,3]
[362406742,1748254254869,-420.0,0.00041356,2]
[362406743,1748254254879,-420.0,0.00041357,2]
[362406744,1748254254888,-420.0,0.00041357,2]
[362406745,1748254254897,-420.0,0.00041357,2]
[362406746,1748254254907,-420.0,0.00041357,2]
[362406747,1748254254916,-420.0,0.00041357,2]
[362406748,1748254254925,-420.0,0.00041357,2]
[362406749,1748254254934,-420.0,0.00041357,2]
[362406750,1748254254944,-510.22,0.00041357,2]
[362406751,1748254254954,-420.0,0.00041357,2]
[362406752,1748254254963,-420.0,0.00041357,2]
[362406753,1748254254972,-420.0,0.00041357,2]
[362406754,1748254254981,-372.98120301,0.00041357,2]
[362406755,1748254255001,-420.0,0.00019997,2]
[362406756,1748254255011,-47.01879699,0.00041357,2]
[362406757,1748254255020,-420.0,0.00041357,2]
[362406758,1748254255029,-420.0,0.00041357,2]
[362406759,1748254255039,-214.82,0.00041357,2]
[362406760,1748254255049,-278.16120301,0.00041357,2]
[362406773,1748254831826,157.01,0.00013699,2]
[362406775,1748255110537,14482.66206031,0.000154,2]
[362406776,1748255120226,6046.75452991,9e-05,2]
[362406777,1748255126225,762.9416751,0.000108,2]
[362406778,1748255136932,1316.42643881,9e-05,2]
[362406779,1748255155557,8656.03672825,6.94e-05,2]
[362406781,1748255162916,4810.15075424,8e-05,2]
[362406782,1748255167043,3043.95911826,8e-05,2]
[362406791,1748255187625,250.0,0.00015,2]
[362406792,1748255191127,-300.0,0.00017,2]
[362406793,1748255191150,-350.0,0.00019,2]
[362406794,1748255191174,-213.479486,0.00019178,2]
[362406795,1748255191197,-226.01406158,0.00019799,2]
[362406796,1748255191219,-2572.76666632,0.00019896,2]
[362406797,1748255191242,-244.7753207,0.00019995,2]
[362406798,1748255229813,7138.47069099,0.00015,2]
[362406799,1748255233150,18365.96108414,0.00015,2]
[362406800,1748255239276,3123.50182463,0.0001305,2]
[362406802,1748255273435,24437.98862999,0.0001,2]
[362406803,1748255275155,252.39224272,0.00015,2]
[362406804,1748255285022,154.1031104,0.00014925,2]
[362406805,1748255301805,1873.4913025,0.0001,2]
[362406806,1748255303782,379.91171464,7.888e-05,2]
[362406807,1748255312181,1061.09069479,0.000149,2]
[362406808,1748255316966,260.24656062,0.000107,2]
[362406809,1748255317385,491.76993669,0.000154,2]
[362406812,1748255320902,1368.73886284,0.00010136,2]
[362406813,1748255321245,18107.72980743,0.00013368,2]
[362406825,1748255431762,-430.79,0.0001877,3]
[362406827,1748255431775,-537.06144406,0.00018779,2]
[362406831,1748255431977,-450.037073,0.00018779,2]